bitfinex/quotes_ETHUSD_20251011
["timestamp","ask_amount","ask_price","bid_price","bid_amount"]
[1760220615709,7.71313048,3747.1,3747.0,0.001]
[1760220616715,3.3026154,3746.7,3746.6,0.002]
[1760220616914,10.31083737,3746.3,3746.2,0.002]
[1760220617126,26.84013155,3746.3,3746.2,0.002]
[1760220617428,27.26506608,3746.3,3746.2,0.002]
[1760220617786,27.26506608,3746.3,3744.7,0.002]
[1760220617787,3.30339923,3745.6,3744.7,0.002]
[1760220618015,5.22339923,3745.6,3744.7,0.002]
[1760220618317,5.32319923,3745.6,3744.7,0.002]
[1760220620790,2.0198,3745.6,3744.7,0.002]
[1760220621111,0.1461,3745.7,3744.7,0.002]
[1760220621112,0.1457,3746.0,3744.7,0.002]
[1760220621296,0.0998,3746.2,3745.7,2.6697215]
[1760220621631,0.2445,3747.5,3745.5,0.0286987]
[1760220621840,0.2445,3747.5,3745.8,0.4582]
[1760220621991,2.91256236,3748.1,3745.9,0.66029585]
[1760220622185,2.91256236,3748.1,3746.0,2.3782]
[1760220622186,0.2445,3748.1,3746.0,2.3782]
[1760220622423,2.6683146,3747.7,3745.6,2.66979923]
[1760220622619,2.66850867,3747.5,3745.7,0.4344]
[1760220622922,2.66859512,3747.3,3746.4,2.66916977]
[1760220623224,2.76743461,3747.6,3746.7,2.66899295]
[1760220623410,0.099,3747.6,3746.8,2.66894416]
[1760220623586,0.099,3747.6,3746.5,2.66915788]
[1760220623784,2.6686674,3747.2,3745.6,0.4344]
[1760220623989,0.099,3747.2,3746.4,2.66916003]
[1760220624303,0.099,3747.2,3745.6,0.4344]
[1760220624304,2.76768393,3747.2,3746.2,2.669311]
[1760220624507,2.76768393,3747.2,3746.3,2.66925719]
[1760220624712,2.66942444,3746.2,3745.5,0.002]
[1760220624922,2.66893626,3746.9,3745.5,0.002]
[1760220625118,1.92,3746.8,3745.5,0.002]
[1760220625424,1.92,3747.4,3745.6,0.4344]
[1760220625623,0.1461,3748.0,3745.7,1.94669727]
[1760220625795,0.1461,3748.0,3745.8,1.068]
[1760220625796,0.2451,3748.0,3745.8,1.068]
[1760220625999,2.019,3747.8,3745.6,0.4344]
[1760220626213,0.099,3747.7,3745.7,0.46109727]
[1760220626415,2.6685018,3747.5,3745.7,0.4344]
[1760220626615,0.099,3747.6,3746.5,2.66909209]
[1760220626798,2.019,3747.6,3746.8,2.66887374]
[1760220627005,2.76738724,3747.6,3746.7,2.66900764]
[1760220627217,2.76738724,3747.6,3746.8,2.66894151]
[1760220627390,0.099,3747.6,3747.0,2.66878348]
[1760220627796,0.099,3748.2,3747.5,2.66844011]
[1760220628028,2.76695253,3748.2,3747.1,2.66873048]
[1760220628224,0.1461,3748.4,3747.6,2.66835298]
[1760220628423,2.81390531,3748.4,3747.6,2.66835298]
[1760220628631,2.81323666,3748.8,3747.7,2.66826058]
[1760220628840,2.66751582,3748.9,3747.8,2.93503313]
[1760220628997,0.001,3749.1,3746.9,2.66887293]
[1760220628998,0.1004,3748.8,3746.9,2.66887293]
[1760220629195,0.1004,3748.8,3748.2,2.66792807]
[1760220629397,2.66830683,3749.1,3748.2,2.66789113]
[1760220629705,0.1004,3749.0,3748.2,2.66788356]
[1760220630229,2.76779003,3749.0,3748.2,2.66788356]
[1760220630614,2.66747004,3748.9,3747.9,2.66815203]
[1760220630816,0.001,3749.1,3748.6,2.66759272]
[1760220631119,0.001,3749.1,3748.0,0.7012152]
[1760220631316,0.001,3749.1,3749.0,2.66737796]
[1760220631651,0.001,3749.1,3748.1,0.6672]
[1760220631929,0.1338,3749.1,3749.0,2.66737796]
[1760220632363,0.001,3749.1,3748.2,2.66794728]
[1760220632638,0.001,3749.1,3748.0,0.4344]
[1760220632932,0.001,3749.1,3747.9,1.92]
[1760220632933,0.001,3749.1,3748.7,2.66752566]
[1760220633728,0.001,3749.1,3748.2,0.4344]
[1760220633920,0.001,3749.1,3748.8,2.667512]
[1760220635199,0.001,3749.1,3748.1,0.50226216]
[1760220635538,0.001,3749.1,3747.8,0.4344]
[1760220636007,0.1,3749.1,3747.8,0.4344]
[1760220636216,2.66750475,3748.9,3747.8,3.10259994]
[1760220636533,0.001,3749.1,3747.9,3.10255002]
[1760220636737,0.001,3749.1,3747.9,0.4344]
[1760220636939,0.001,3749.1,3749.0,2.66737796]
[1760220637299,0.001,3749.1,3749.0,3.10177796]
[1760220638005,0.001,3749.1,3749.0,2.66737796]
[1760220638406,0.001,3749.1,3749.0,3.10177796]
[1760220638662,0.001,3749.1,3749.0,3.7053768]
[1760220639452,0.001,3749.1,3749.0,6.2589768]
[1760220639599,0.001,3749.1,3749.0,5.59870303]
[1760220639799,0.001,3749.1,3749.0,3.67870303]
[1760220641033,0.001,3749.1,3749.0,4.31230303]
[1760220641233,0.001,3749.1,3749.0,4.3389768]
[1760220642011,0.001,3749.1,3749.0,4.31230303]
[1760220642214,1e-08,3749.9,3749.8,5.22040889]
[1760220642432,1e-08,3749.9,3749.8,5.87524978]
[1760220642637,1e-08,3749.9,3749.8,6.32824978]
[1760220644619,1e-08,3749.9,3749.4,0.453]
[1760220644823,1e-08,3749.9,3749.7,2.66681822]
[1760220645051,1e-08,3749.9,3748.8,0.453]
[1760220645231,1e-08,3749.9,3749.6,2.66693995]
[1760220645634,1e-08,3749.9,3749.7,2.66687301]
[1760220645819,1e-08,3749.9,3749.6,2.66694486]
[1760220646024,2.8932619,3749.8,3748.7,2.66759143]
[1760220646357,0.2264,3749.8,3749.2,2.66722962]
[1760220646548,1e-08,3749.9,3749.3,2.66710465]
[1760220646747,1e-08,3749.9,3749.7,2.66686836]
[1760220647059,1e-08,3749.9,3749.5,2.66701341]
[1760220647354,1e-08,3749.9,3749.6,0.02666951]
[1760220647529,1e-08,3749.9,3749.3,2.66714962]
[1760220647729,1e-08,3749.9,3749.6,2.66694813]
[1760220647932,1e-08,3749.9,3749.1,2.66724015]
[1760220648136,1e-08,3749.9,3749.2,2.66719447]
[1760220648353,1e-08,3749.9,3748.8,0.31205914]
[1760220648354,2.66677055,3749.9,3749.1,2.66729628]
[1760220648556,0.12840001,3749.9,3748.6,0.453]
[1760220648755,0.12840001,3749.9,3749.2,2.66721917]
[1760220648959,1e-08,3749.9,3749.3,0.453]
[1760220649135,0.001,3751.3,3749.9,0.6336]
[1760220649342,0.001,3751.3,3751.0,2.66589486]
[1760220649650,0.001,3751.3,3751.2,2.6658136]
[1760220650273,0.001,3751.3,3750.0,0.453]
[1760220650274,0.001,3751.3,3750.1,0.6732]
[1760220650475,0.099,3751.2,3749.8,0.2202]
[1760220650649,0.099,3751.2,3750.0,2.66662197]
[1760220650848,0.001,3751.3,3750.1,0.47966595]
[1760220651048,0.001,3751.3,3750.1,0.453]
[1760220651348,0.001,3751.3,3750.6,2.66621747]
[1760220651871,0.001,3751.3,3750.7,2.66615773]
[1760220652178,0.001,3751.3,3750.7,2.66615179]
[1760220652838,0.001,3751.3,3750.5,2.66624523]
[1760220653076,2.66675118,3751.3,3750.5,2.66624523]
[1760220653273,0.001,3751.3,3750.0,1.92]
[1760220653694,0.099,3751.2,3749.3,0.2253]
[1760220653849,2.66621084,3750.7,3749.5,2.66699861]
[1760220654051,2.76521084,3750.7,3749.7,2.66682338]
[1760220654271,2.66624229,3750.6,3749.7,2.66682338]
[1760220654661,0.1328,3749.8,3749.7,2.66682338]
[1760220654876,0.1328,3749.8,3749.6,0.28922986]
[1760220654877,0.001,3751.3,3749.6,1.92]
[1760220655048,0.001,3751.3,3751.2,2.6658136]
[1760220655776,0.001,3751.3,3751.2,3.1300136]
[1760220656574,0.001,3751.3,3751.2,2.6658136]
[1760220658324,0.001,3751.3,3750.6,2.66618102]
[1760220658470,2.66674712,3751.3,3750.4,2.6663161]
[1760220658675,0.001,3751.3,3749.7,0.6562]
[1760220658903,0.001,3751.3,3749.8,0.52431998]
[1760220659106,2.66679787,3751.3,3750.4,2.66633388]
[1760220659370,0.001,3751.3,3750.5,2.66624513]
[1760220659578,0.001,3751.3,3750.9,2.66601857]
[1760220659772,0.001,3751.3,3750.6,0.0266624]
[1760220660519,0.001,3751.3,3749.8,3.19107796]
[1760220660520,0.001,3751.3,3749.8,0.52431998]
[1760220660722,0.001,3751.3,3749.7,2.3842]
[1760220661082,0.001,3751.3,3750.6,2.66618488]
[1760220661507,0.001,3751.3,3749.7,2.3842]
[1760220661713,0.001,3751.3,3749.8,0.02666808]
[1760220662012,2.66621937,3750.7,3749.8,2.66675482]
[1760220662215,0.1006,3750.6,3748.9,0.6895]
[1760220662417,0.6336,3750.3,3748.7,2.66759094]
[1760220662614,0.1006,3751.0,3748.8,0.4642]
[1760220662921,1.92,3750.5,3749.7,2.6668138]
[1760220663096,1.92,3750.5,3749.8,2.6667931]
[1760220663289,1.92,3750.8,3749.9,2.66672222]
[1760220663694,1.92,3750.6,3749.9,2.66672222]
[1760220663906,0.1006,3750.9,3750.0,0.02666666]
[1760220664232,0.6336,3750.6,3748.8,0.4642]
[1760220664392,2.66649014,3750.3,3748.9,0.49087449]
[1760220664592,2.66649014,3750.3,3749.5,2.6669563]
[1760220664828,2.6665307,3750.2,3749.5,2.6669563]
[1760220665048,2.66595695,3751.0,3748.7,0.1328]
[1760220665049,0.1328,3749.5,3748.7,0.1328]
[1760220665249,0.1328,3749.5,3748.3,0.4642]
[1760220665250,0.1284,3749.7,3749.1,2.66724252]
[1760220665464,0.1328,3749.2,3749.1,2.66724252]
[1760220665763,0.1328,3749.2,3748.5,0.1328]
[1760220665922,0.1284,3749.7,3748.3,0.4642]
[1760220665923,2.66721964,3749.3,3748.3,2.66781829]
[1760220666124,0.1328,3748.4,3748.3,2.66781829]
[1760220666744,0.1328,3748.4,3747.8,0.597]
[1760220666948,0.1008,3748.7,3747.1,0.2253]
[1760220667251,0.1328,3748.2,3748.1,2.66801846]
[1760220672216,0.1328,3748.2,3747.6,0.1328]
[1760220672560,0.1008,3748.4,3747.6,2.66831914]
[1760220672760,2.0484,3749.7,3747.1,0.0266873]
[1760220672761,1.92,3749.5,3747.1,0.0266873]
[1760220673058,2.66696912,3749.6,3746.7,0.2253]
[1760220673059,2.66745388,3748.9,3748.0,2.66802418]
[1760220673228,2.66745388,3748.9,3748.1,2.6679914]
[1760220673560,4.58759143,3748.7,3747.6,2.66836221]
[1760220673722,1.92,3748.6,3747.8,2.66816858]
[1760220673922,1.92,3748.6,3747.9,2.66815497]
[1760220674129,2.76853442,3748.5,3747.4,2.66847805]
[1760220674665,2.66803006,3748.1,3747.3,2.66852669]
[1760220674832,2.66789786,3748.3,3747.2,2.66864245]
[1760220675175,1.92,3748.6,3747.2,0.4642]
[1760220675322,1.92,3748.6,3746.7,0.2253]
[1760220675323,0.6336,3748.4,3746.7,0.2253]
[1760220675527,2.66794728,3748.2,3747.1,2.66872187]
[1760220675745,2.66794728,3748.2,3747.2,2.66863964]
[1760220675952,2.76869669,3748.3,3747.3,2.66858245]
[1760220676151,0.1008,3748.3,3747.5,2.66843705]
[1760220676350,4.58782834,3748.4,3747.7,2.66826871]
[1760220676557,4.58782834,3748.4,3747.0,3.13296969]
[1760220676558,4.58782834,3748.4,3747.6,2.66832197]
[1760220677158,4.58782834,3748.4,3747.4,2.66850901]
[1760220677159,1.92,3748.4,3747.7,2.6682698]
[1760220677359,1.92,3748.9,3747.6,0.4642]
[1760220677564,1.92,3749.2,3747.6,0.4642]
[1760220677764,2.66731211,3749.1,3748.3,2.66782076]
[1760220678777,2.76789778,3749.4,3748.4,2.66780417]
[1760220678945,1.92,3749.3,3747.9,0.4642]
[1760220679140,2.66700728,3749.6,3748.8,2.66750953]
[1760220679339,1.92,3749.5,3748.8,2.66750953]
[1760220679538,0.1008,3750.0,3749.0,2.66731406]
[1760220679740,2.76753812,3750.4,3748.8,3.13169886]
[1760220679972,2.76753812,3750.4,3749.7,2.66687957]
[1760220680192,2.0211,3750.4,3749.7,2.66687957]
[1760220680398,2.76748889,3750.4,3749.7,2.66687957]
[1760220680593,2.76748889,3750.4,3749.4,2.66707022]
[1760220680594,2.76748889,3750.4,3749.6,2.66693646]
[1760220680759,1.92,3750.6,3749.8,2.6667504]
[1760220680965,0.1011,3751.5,3749.9,0.02666737]
[1760220681177,0.1011,3751.5,3749.7,0.4642]
[1760220681178,0.1011,3751.2,3749.7,0.4642]
[1760220681379,0.1011,3751.2,3750.2,2.66645951]
[1760220681670,1.92,3751.0,3750.2,2.66645951]
[1760220681867,0.1011,3750.9,3746.1,2.67137364]
[1760220682089,0.001,3751.3,3748.3,0.4642]
[1760220682090,0.099,3750.8,3748.3,0.4642]
[1760220682293,2.66692888,3749.7,3748.3,0.4642]
[1760220682503,1.92,3750.4,3749.1,2.66723593]
[1760220682504,0.1328,3749.3,3749.1,2.66723593]
[1760220682801,0.1328,3749.3,3748.7,0.4563]
[1760220682979,0.1328,3748.9,3748.1,0.1328]
[1760220683175,0.1296,3749.9,3748.1,0.1328]
[1760220683176,0.0996,3749.3,3748.1,0.1328]
[1760220683475,0.1328,3748.6,3748.5,2.66773376]
[1760220683675,2.6667365,3750.0,3749.0,2.6673647]
[1760220683881,1.92,3749.8,3749.0,2.6673647]
[1760220684186,1.92,3749.8,3748.5,0.98985653]
[1760220684187,0.1328,3749.0,3748.9,2.66744451]
[1760220684983,0.1328,3749.0,3748.5,0.98985653]
[1760220684984,0.1328,3749.0,3748.6,2.66763539]
[1760220685186,0.0999,3749.6,3748.7,2.66756053]
[1760220685187,0.1328,3748.8,3748.7,2.66756053]
[1760220685499,0.1328,3748.8,3748.7,3.25444508]
[1760220685809,0.1328,3748.8,3748.7,0.58688455]
[1760220686101,0.1328,3748.8,3748.7,2.66759143]
[1760220686601,0.1328,3748.8,3748.6,0.002]
[1760220687108,0.0999,3748.7,3748.6,0.002]
[1760220687304,2.66738241,3749.0,3748.6,0.002]
[1760220687605,2.66746206,3748.9,3748.6,0.002]
[1760220687808,1.92,3749.7,3748.6,0.002]
[1760220687809,2.66718929,3749.3,3748.6,0.002]
[1760220688307,2.66725898,3749.2,3748.6,0.002]
[1760220688518,0.1293,3749.9,3748.6,0.26897997]
[1760220688823,2.666611,3750.1,3749.3,2.66715181]
[1760220688978,0.001,3750.3,3748.7,0.4563]
[1760220689179,2.66653769,3750.2,3749.4,2.66703394]
[1760220689684,0.001,3750.3,3749.9,2.66668375]
[1760220689907,0.001,3750.3,3749.9,2.66673319]
[1760220690420,0.001,3750.3,3749.9,0.98966825]
[1760220690602,0.001,3750.3,3749.9,0.4563]
[1760220690778,0.001,3750.3,3750.0,2.66666666]
[1760220691223,0.001,3750.3,3750.2,2.66652445]
[1760220691379,0.001,3750.3,3748.9,0.4563]
[1760220691585,0.001,3750.3,3748.8,2.66752027]
[1760220691780,0.001,3750.3,3749.9,2.6666746]
[1760220692378,0.001,3750.3,3748.9,2.37895203]
[1760220692379,0.001,3750.3,3750.2,2.66652445]
[1760220692597,0.001,3750.3,3750.2,2.69318969]
[1760220692914,0.001,3750.3,3750.2,3.14948969]
[1760220693317,0.001,3750.3,3750.2,5.04282445]
[1760220693488,0.001,3750.3,3750.2,5.81376881]
[1760220694287,0.001,3750.3,3750.2,6.44736881]
[1760220695124,0.001,3750.3,3750.2,5.81376881]
[1760220695541,0.001,3750.3,3750.2,6.44736881]
[1760220696032,0.001,3750.3,3750.2,0.4563]
[1760220696347,0.001,3750.3,3750.2,2.66652445]
[1760220697042,0.001,3750.3,3749.6,0.4563]
[1760220697252,0.1338,3750.3,3749.7,0.1328]
[1760220697464,0.1328,3749.7,3749.1,0.1328]
[1760220697742,0.1328,3749.7,3748.3,0.4563]
[1760220697928,0.2267,3749.9,3749.1,2.66730291]
[1760220698133,2.89346895,3749.9,3749.1,2.66730291]
[1760220698343,2.66681431,3749.8,3749.1,2.66730291]
[1760220698531,2.66681431,3749.8,3749.0,2.66736797]
[1760220698912,2.89344638,3749.9,3748.9,2.66744669]
[1760220699241,2.89344638,3749.9,3749.0,2.6673679]
[1760220699428,2.89344638,3749.9,3749.1,2.66728255]
[1760220700013,1.921,3750.3,3748.7,0.4563]
[1760220700014,0.001,3750.3,3748.7,0.4563]
[1760220700209,1.92,3750.1,3749.4,2.66709247]
[1760220701042,0.001,3750.3,3749.6,2.66694889]
[1760220701234,0.001,3750.3,3749.2,2.66723567]
[1760220701432,2.66751246,3750.3,3749.5,2.66701113]
[1760220701832,2.66656259,3750.2,3749.3,2.69377187]
[1760220702144,2.66679186,3749.9,3748.6,0.002]
[1760220702314,0.1287,3749.8,3749.2,2.66723548]
[1760220702725,2.79551406,3749.8,3748.6,0.002]
[1760220702924,0.1287,3749.8,3748.6,0.002]
[1760220703221,0.1287,3749.8,3749.3,2.66710991]
[1760220703427,0.001,3750.3,3749.5,2.66696282]
[1760220703838,2.66653314,3750.2,3749.5,2.66696282]
[1760220704155,2.66747071,3750.3,3749.5,2.66696282]
[1760220704359,2.66747071,3750.3,3749.3,0.49167164]
[1760220704360,0.001,3750.3,3749.6,0.02666951]
[1760220704661,0.001,3750.3,3750.0,2.66664657]
[1760220704959,0.001,3750.3,3749.3,0.465]
[1760220704960,0.001,3750.3,3750.2,2.66652445]
[1760220705159,0.001,3750.3,3750.2,2.93584349]
[1760220705322,0.001,3750.3,3750.2,3.40084349]
[1760220705723,0.001,3750.3,3748.6,0.002]
[1760220706122,0.001,3750.3,3750.0,2.66661243]
[1760220707964,0.001,3750.3,3749.4,2.6670934]
[1760220708152,0.001,3750.3,3750.1,2.666541]
[1760220708532,0.001,3750.3,3750.2,2.66652445]
[1760220708937,0.001,3750.3,3750.2,2.93317689]
[1760220709764,0.001,3750.3,3749.3,0.465]
[1760220709941,0.001,3750.3,3750.0,2.66666493]
[1760220710875,0.1328,3750.0,3749.0,2.66735527]
[1760220711081,0.1284,3749.9,3748.9,2.66744861]
[1760220711278,2.79519626,3749.9,3749.0,2.66730697]
[1760220711450,2.66681792,3749.8,3749.1,3.20317275]
[1760220711650,2.66681792,3749.8,3749.1,0.53587556]
[1760220711845,0.1284,3749.9,3749.1,0.53587556]
[1760220711846,0.1284,3749.9,3749.1,0.002]
[1760220712159,2.66723567,3749.2,3749.1,0.002]
[1760220712356,5.22083567,3749.2,3749.1,0.002]
[1760220712570,5.32063567,3749.2,3749.1,0.001]
[1760220713680,8.568603,3749.1,3748.4,1e-08]
[1760220713848,33.06197054,3748.5,3748.4,1e-08]
[1760220714047,24.53290254,3748.5,3748.4,1e-08]
[1760220714281,23.2286881,3748.3,3748.2,0.001]
[1760220714467,23.2286881,3748.3,3745.8,0.002]
[1760220714468,0.6336,3746.9,3745.8,0.002]
[1760220714666,0.6336,3747.1,3745.8,0.002]
[1760220714877,0.099,3747.3,3745.8,2.67164973]
[1760220715094,4.58880131,3747.1,3746.0,2.66950135]
[1760220715391,0.6336,3747.6,3746.0,2.66950135]
[1760220715392,2.81263026,3747.7,3746.7,2.66894642]
[1760220715548,0.1443,3747.7,3746.8,2.66894079]
[1760220715750,0.1443,3747.7,3746.3,0.026693]
[1760220715986,0.1443,3747.7,3746.2,0.4533]
[1760220716166,0.1443,3747.7,3746.1,0.2353]
[1760220716167,0.7335,3747.6,3746.1,0.002]
[1760220716585,2.66852717,3747.4,3746.1,0.002]
[1760220716787,2.66852405,3747.4,3746.1,0.002]
[1760220716987,2.66852405,3747.4,3746.5,2.66915444]
[1760220717489,2.66852405,3747.4,3746.2,2.66933813]
[1760220717490,2.66860779,3747.3,3746.2,2.66933813]
[1760220717693,0.7335,3747.6,3746.4,2.66922912]
[1760220717900,2.66866414,3747.2,3746.4,2.66922912]
[1760220718084,2.66858139,3747.4,3746.4,2.66922912]
[1760220718393,2.66858139,3747.4,3746.5,2.66914921]
[1760220718892,0.0999,3748.1,3746.6,0.02669086]
[1760220719094,0.1439,3748.2,3747.6,2.66831016]
[1760220719309,0.1439,3748.2,3746.4,2.90246477]
[1760220719310,0.1435,3748.6,3747.4,0.02668516]
[1760220719603,0.1435,3748.6,3747.5,2.66844563]
[1760220719819,0.1012,3749.7,3747.7,2.66830322]
[1760220720117,2.66693642,3749.7,3748.8,2.6675085]
[1760220720297,0.1016,3749.6,3747.4,0.31486915]
[1760220720470,2.0484,3749.9,3747.1,1.92]
[1760220720471,1.92,3749.3,3747.1,1.92]
[1760220720669,0.1016,3749.5,3747.2,0.4533]
[1760220720874,0.1016,3749.4,3747.2,0.4533]
[1760220721110,0.1016,3749.3,3747.2,0.4533]
[1760220721291,0.1016,3749.3,3747.3,0.50420412]
[1760220721463,0.1016,3749.3,3747.4,0.4533]
[1760220721797,2.66724149,3749.2,3748.3,2.66786289]
[1760220722410,0.6336,3749.0,3747.3,0.002]
[1760220722610,0.1328,3747.5,3747.3,0.002]
[1760220722769,0.1328,3747.5,3747.4,2.66851683]
[1760220723198,0.72413745,3750.4,3747.4,1.12001684]
[1760220723199,1.92,3749.3,3747.4,1.12001684]
[1760220723500,2.66759382,3748.7,3747.5,2.668382]
[1760220723680,0.1016,3748.6,3747.6,2.66836115]
[1760220723996,2.66793757,3748.3,3747.3,1.922]
[1760220724198,0.6336,3748.1,3747.3,0.002]
[1760220724361,2.66812761,3748.0,3747.3,0.002]
[1760220724566,0.1016,3748.2,3747.3,0.002]
[1760220724998,2.66750322,3748.9,3747.3,0.002]
[1760220724999,0.6336,3748.5,3747.7,1.92]
[1760220725208,0.6336,3748.5,3747.5,1.92]
[1760220725209,2.76981124,3748.4,3747.5,1.92]
[1760220725415,2.76981124,3748.4,3747.3,0.002]
[1760220725629,0.102,3748.4,3747.3,0.002]
[1760220725782,2.6678761,3748.3,3747.3,0.002]
[1760220726113,2.76981558,3748.4,3747.5,2.66840046]
[1760220726293,2.66789068,3748.3,3747.4,2.66850149]
[1760220726497,2.76981931,3748.4,3747.6,1.92]
[1760220726696,0.102,3749.4,3747.5,0.4533]
[1760220726920,0.102,3749.4,3748.3,1.92]
[1760220727082,2.66737388,3749.1,3748.3,1.92]
[1760220727281,0.6336,3749.2,3748.4,2.66779405]
[1760220727505,0.6336,3749.2,3748.3,1.92]
[1760220727720,0.102,3749.1,3748.0,2.66803285]
[1760220727929,0.102,3749.1,3748.4,1.92]
[1760220728285,0.102,3749.1,3747.9,1.92]
[1760220728630,0.1284,3749.9,3748.0,0.02668089]
[1760220728778,0.102,3750.1,3749.2,2.66716652]
[1760220728983,2.66680346,3749.9,3748.3,1.92]
[1760220729224,0.1282,3749.8,3749.2,2.66723149]
[1760220729424,0.1282,3749.8,3748.6,1.92]
[1760220729583,0.1282,3749.8,3748.3,1.92]
[1760220729779,0.1023,3749.7,3747.7,1.92]
[1760220730026,0.1023,3749.7,3747.8,0.69063]
[1760220730027,2.76924009,3749.7,3747.8,0.69063]
[1760220730226,2.66696197,3749.6,3748.7,2.66758431]
[1760220730719,2.66696197,3749.6,3748.8,2.66750486]
[1760220731025,2.66696197,3749.6,3747.0,0.4533]
[1760220731026,0.6336,3749.4,3747.0,0.4533]
[1760220731230,2.6677095,3748.6,3747.9,1.92]
[1760220731530,2.6677095,3748.6,3746.9,0.002]
[1760220731531,0.6336,3748.6,3746.9,0.002]
[1760220731711,0.6336,3748.4,3746.9,0.002]
[1760220731913,0.6336,3748.5,3746.9,0.002]
[1760220732115,2.76691236,3748.3,3747.2,2.668659]
[1760220732429,0.1455,3748.6,3747.7,2.66829425]
[1760220732772,0.7326,3748.5,3747.3,0.002]
[1760220732978,2.66786319,3748.4,3747.3,0.002]
[1760220733276,2.66766642,3748.6,3747.8,2.66822069]
[1760220733430,2.66766642,3748.6,3747.5,2.66838251]
[1760220733431,0.1328,3747.8,3747.5,2.66838251]
[1760220733639,2.66786619,3748.4,3747.4,2.66851683]
[1760220733837,0.1328,3747.5,3747.4,2.66851683]
[1760220734032,0.1328,3747.5,3747.3,2.67057982]
[1760220734234,0.145,3747.7,3747.3,0.002]
[1760220734439,2.6682307,3747.9,3747.3,0.002]
[1760220734777,0.0995,3747.6,3747.3,0.002]
[1760220735271,2.66851683,3747.4,3747.3,0.002]
[1760220735657,2.76801683,3747.4,3747.3,0.002]
[1760220736500,5.32161683,3747.4,3747.3,0.002]
[1760220737101,2.66908663,3746.6,3746.5,0.002]
[1760220737301,5.22268663,3746.6,3746.5,0.002]
[1760220737600,5.22297162,3746.2,3746.1,0.002]
[1760220738105,5.32047162,3746.2,3746.1,0.002]
[1760220740414,10.60588851,3745.5,3745.4,1e-08]
[1760220740702,5.22368437,3745.2,3742.2,14.25556878]
[1760220740907,5.22368437,3745.2,3742.0,0.2333]
[1760220740908,1.92,3745.2,3743.4,0.4533]
[1760220741070,5.32268437,3745.2,3743.1,2.67151412]
[1760220741264,5.32268437,3745.2,3744.5,2.67052508]
[1760220741265,1.92,3745.2,3744.5,2.67052508]
[1760220741477,2.66989761,3745.5,3744.5,2.67052508]
[1760220741478,0.6336,3745.5,3744.5,2.67057308]
[1760220741674,0.6336,3745.5,3743.7,2.67115376]
[1760220741675,0.1428,3745.7,3745.0,2.67021364]
[1760220741988,0.099,3746.0,3745.1,2.93934271]
[1760220742180,2.81178696,3746.2,3745.1,0.26922136]
[1760220742377,0.1424,3746.2,3745.1,0.26922136]
[1760220742582,14.25556878,3747.9,3745.8,2.66963476]
[1760220742583,0.1419,3746.7,3745.8,2.66963476]
[1760220742985,2.0619,3746.7,3745.9,2.6695746]
[1760220743819,0.1419,3746.7,3746.0,2.66950047]
[1760220744032,0.1419,3746.7,3745.1,0.26922136]
[1760220744033,0.6336,3746.5,3745.1,0.26922136]
[1760220744214,0.1419,3746.7,3745.1,0.26922136]
[1760220744215,2.66994941,3745.4,3745.1,0.002]
[1760220744518,4.58994401,3745.4,3745.1,0.002]
[1760220744819,1.92,3745.4,3745.1,0.002]
[1760220745026,2.5536,3746.3,3745.1,0.002]
[1760220745322,2.67008437,3745.2,3745.1,0.002]
[1760220745691,5.32358437,3745.2,3745.1,0.002]
[1760220748002,1.92,3745.2,3745.1,0.002]
[1760220748203,5.32358437,3745.2,3745.1,0.002]
[1760220749100,5.22368437,3745.2,3745.1,0.002]
[1760220749309,5.32358437,3745.2,3745.1,0.002]
[1760220749723,2.5536,3745.2,3745.1,0.002]
[1760220750025,5.32358437,3745.2,3745.1,0.002]
[1760220750395,2.0199,3745.2,3745.1,0.002]
[1760220750596,1.92,3745.2,3745.1,0.002]
[1760220752806,5.51558437,3745.2,3745.1,0.002]
[1760220754122,1.92,3745.2,3745.1,0.002]
[1760220754332,2.0199,3745.2,3745.1,0.002]
[1760220755004,1.92,3745.2,3745.1,0.002]
[1760220755939,2.0199,3745.2,3745.1,0.002]
[1760220756115,5.32358437,3745.2,3745.1,0.002]
[1760220763145,2.5536,3745.2,3745.1,0.002]
[1760220763766,0.6336,3745.3,3745.1,0.002]
[1760220763966,1.92,3745.4,3745.1,0.002]
[1760220764138,0.001,3746.6,3745.1,0.002]
[1760220764139,2.66972795,3745.7,3745.1,0.002]
[1760220764338,0.0999,3745.2,3745.1,0.002]
[1760220764740,1.92,3745.4,3745.1,0.002]
[1760220764944,2.5536,3745.5,3745.1,0.002]
[1760220765144,2.66996523,3745.4,3745.1,0.002]
[1760220765345,0.0999,3745.4,3745.1,0.002]
[1760220765564,2.0199,3745.4,3745.1,0.002]
[1760220765876,0.0999,3745.4,3745.1,0.002]
[1760220766253,2.5536,3745.5,3745.1,0.002]
[1760220766994,2.67008437,3745.2,3745.1,0.002]
[1760220767792,0.6336,3745.3,3745.1,0.002]
[1760220768093,1.92,3745.3,3745.1,0.002]
[1760220768387,0.0999,3745.2,3745.1,0.002]
[1760220769464,1.92,3745.4,3745.1,0.002]
[1760220769649,3.30347959,3745.5,3745.1,0.002]
[1760220769650,0.6336,3745.5,3745.1,0.002]
[1760220769849,2.66980968,3745.6,3745.1,0.002]
[1760220769850,3.30368437,3745.2,3745.1,0.002]
[1760220770681,5.32358437,3745.2,3745.1,0.002]
[1760220770844,1.92,3745.2,3745.1,0.002]
[1760220771269,4.59008437,3745.2,3745.1,0.002]
[1760220772146,1.92,3745.2,3745.1,0.002]
[1760220774194,4.68998437,3745.2,3745.1,0.002]
[1760220774490,5.51558437,3745.2,3745.1,0.002]
[1760220776284,1.92,3745.2,3745.1,0.002]